bitfinex-derivatives/quotes_BNBF0:USTF0_20241225
["timestamp","ask_amount","ask_price","bid_price","bid_amount"]
[1735092031241,0.26330454,698.92,697.54,0.2867219]
[1735092031442,0.26330454,698.91,697.54,0.2867219]
[1735092031743,0.26330454,698.9,697.54,0.2867219]
[1735092031943,0.26330529,698.89,697.54,0.2867219]
[1735092032138,0.26330529,698.88,697.54,0.2867219]
[1735092032343,0.26330529,698.87,697.54,0.2867219]
[1735092032540,0.26330529,698.86,697.54,0.2867219]
[1735092032743,0.26331011,698.85,697.54,0.2867219]
[1735092032941,0.26331011,698.84,697.54,0.2867219]
[1735092033141,0.26331011,698.83,697.54,0.2867219]
[1735092033342,0.26331011,698.82,697.54,0.2867219]
[1735092033543,0.26331011,698.81,697.54,0.2867219]
[1735092033745,0.26331011,698.8,697.54,0.2867219]
[1735092033943,0.26331011,698.79,697.54,0.2867219]
[1735092034143,0.26331011,698.78,697.54,0.2867219]
[1735092034348,0.26331011,698.77,697.54,0.2867219]
[1735092034549,1.06902487,698.97,697.54,0.2867219]
[1735092034748,0.263308,698.96,697.54,0.2867219]
[1735092035146,0.263308,698.95,697.54,0.2867219]
[1735092035347,0.263308,698.94,697.54,0.2867219]
[1735092035548,0.263308,698.93,697.54,0.2867219]
[1735092035749,0.263308,698.92,697.54,0.2867219]
[1735092035945,0.263308,698.91,697.54,0.2867219]
[1735092036146,0.263308,698.9,697.54,0.2867219]
[1735092036347,0.263308,698.89,697.54,0.2867219]
[1735092036653,0.263308,698.88,697.54,0.2867219]
[1735092036850,0.263308,698.87,697.54,0.2867219]
[1735092037045,0.263308,698.86,697.54,0.2867219]
[1735092037247,0.263308,698.85,697.54,0.2867219]
[1735092037452,0.26330615,698.84,697.54,0.2867219]
[1735092037655,0.26330615,698.83,697.54,0.2867219]
[1735092037849,0.26330615,698.82,697.54,0.2867219]
[1735092038052,0.26330615,698.81,697.54,0.2867219]
[1735092038247,0.26330615,698.8,697.54,0.2867219]
[1735092038447,0.26330615,698.79,697.54,0.2867219]
[1735092038651,0.26330615,698.78,697.54,0.2867219]
[1735092038850,0.26330615,698.77,697.54,0.2867219]
[1735092039054,0.26330615,698.76,697.54,0.2867219]
[1735092039254,0.26330615,698.75,697.54,0.2867219]
[1735092039456,1.06902487,698.96,697.54,0.2867219]
[1735092039652,0.26329877,698.95,697.54,0.2867219]
[1735092039848,0.26330075,698.94,697.54,0.2867219]
[1735092040055,0.26330075,698.93,697.54,0.2867219]
[1735092040256,0.26329585,698.92,697.54,0.2867219]
[1735092040454,0.26329585,698.91,697.54,0.2867219]
[1735092040652,0.26329585,698.9,697.54,0.2867219]
[1735092040852,0.26329585,698.89,697.54,0.2867219]
[1735092041153,0.26330535,698.88,697.54,0.2867219]
[1735092041353,0.26330535,698.87,697.54,0.2867219]
[1735092041554,0.26330535,698.86,697.54,0.2867219]
[1735092041754,0.26330535,698.85,697.54,0.2867219]
[1735092041949,0.26330535,698.84,697.54,0.2867219]
[1735092042149,0.26330535,698.83,697.54,0.2867219]
[1735092042351,0.26330535,698.82,697.54,0.2867219]
[1735092042555,0.26330535,698.81,697.54,0.2867219]
[1735092042855,0.26330535,698.8,697.54,0.2867219]
[1735092043061,0.2633115,698.79,697.54,0.2867219]
[1735092043255,0.2633115,698.78,697.54,0.2867219]
[1735092043555,0.2633115,698.77,697.54,0.2867219]
[1735092043752,0.2633115,698.76,697.54,0.2867219]
[1735092043957,0.2633115,698.75,697.54,0.2867219]
[1735092044257,0.2633115,698.74,697.54,0.2867219]
[1735092044555,1.06902487,698.94,697.54,0.2867219]
[1735092044757,0.26330625,698.93,697.54,0.2867219]
[1735092045754,0.26327851,698.92,697.54,0.2867219]
[1735092045951,0.26327851,698.91,697.54,0.2867219]
[1735092046155,0.26327851,698.9,697.54,0.2867219]
[1735092046356,0.26327851,698.89,697.54,0.2867219]
[1735092046555,0.26327851,698.88,697.54,0.2867219]
[1735092046752,0.28610256,699.05,697.54,0.2867219]
[1735092046753,0.26327851,698.87,697.54,0.2867219]
[1735092047058,0.26327851,698.86,697.54,0.2867219]
[1735092047260,0.26327851,698.85,697.54,0.2867219]
[1735092047556,0.26327851,698.84,697.54,0.2867219]
[1735092047762,0.26327851,698.83,697.54,0.2867219]
[1735092047960,0.26327851,698.82,697.54,0.2867219]
[1735092048161,0.26327851,698.81,697.54,0.2867219]
[1735092048359,0.26327851,698.8,697.54,0.2867219]
[1735092048554,0.26327851,698.79,697.54,0.2867219]
[1735092048759,0.26327851,698.78,697.54,0.2867219]
[1735092048959,0.26327851,698.77,697.54,0.2867219]
[1735092049161,0.26327851,698.76,697.54,0.2867219]
[1735092049360,0.26327851,698.75,697.54,0.2867219]
[1735092049558,0.26327851,698.74,697.54,0.2867219]
[1735092049762,0.26327851,698.73,697.54,0.2867219]
[1735092049964,1.06902487,698.9,697.54,0.2867219]
[1735092050264,0.28610256,699.05,697.54,0.2867219]
[1735092050265,1.06902487,698.88,697.54,0.2867219]
[1735092050561,0.26328695,698.87,697.54,0.2867219]
[1735092051161,1.06902487,698.85,697.54,0.2867219]
[1735092051362,0.26330674,698.84,697.54,0.2867219]
[1735092052263,0.26330674,698.83,697.54,0.2867219]
[1735092052461,0.26330674,698.82,697.54,0.2867219]
[1735092052758,0.26330674,698.81,697.54,0.2867219]
[1735092052963,0.26330674,698.8,697.54,0.2867219]
[1735092053156,0.26330674,698.79,697.54,0.2867219]
[1735092053463,0.26330674,698.78,697.54,0.2867219]
[1735092053656,0.26330674,698.77,697.54,0.2867219]
[1735092053856,0.26330674,698.76,697.54,0.2867219]
[1735092054059,0.26329054,698.75,697.54,0.2867219]
[1735092054356,1.06902487,698.87,697.54,0.2867219]
[1735092054561,0.26327397,698.86,697.54,0.2867219]
[1735092054759,0.26327397,698.85,697.54,0.2867219]
[1735092054957,0.26327397,698.84,697.54,0.2867219]
[1735092055154,0.26327397,698.83,697.54,0.2867219]
[1735092055361,0.26327397,698.82,697.54,0.2867219]
[1735092055564,1.06902487,698.95,697.54,0.2867219]
[1735092056965,0.28610256,699.05,697.54,0.2867219]
[1735092058858,1.06902487,699.31,697.54,0.2867219]
[1735092059068,0.26323008,699.3,697.54,0.2867219]
[1735092061065,0.26323008,699.29,697.54,0.2867219]
[1735092061259,0.26323008,699.28,697.54,0.2867219]
[1735092061460,1.06902487,699.35,697.54,0.2867219]
[1735092061664,0.26323159,699.34,697.54,0.2867219]
[1735092062065,0.26323159,699.33,697.54,0.2867219]
[1735092062263,0.26323159,699.32,697.54,0.2867219]
[1735092062460,0.26323159,699.31,697.54,0.2867219]
[1735092062660,0.26323159,699.3,697.54,0.2867219]
[1735092062863,0.26323159,699.29,697.54,0.2867219]
[1735092063066,0.26323159,699.28,697.54,0.2867219]
[1735092063264,0.26323159,699.27,697.54,0.2867219]
[1735092063564,0.26323159,699.26,697.54,0.2867219]
[1735092063759,0.26323159,699.25,697.54,0.2867219]
[1735092063961,0.26323159,699.24,697.54,0.2867219]
[1735092064164,1.06902487,699.36,697.54,0.2867219]
[1735092064366,0.26322914,699.35,697.54,0.2867219]
[1735092064667,1.06902487,699.34,697.54,0.2867219]
[1735092064865,0.26322914,699.33,697.54,0.2867219]
[1735092065067,0.263235,699.32,697.54,0.2867219]
[1735092065266,0.263235,699.31,697.54,0.2867219]
[1735092065462,0.263235,699.3,697.54,0.2867219]
[1735092065766,0.263235,699.29,697.54,0.2867219]
[1735092065966,0.263235,699.28,697.54,0.2867219]
[1735092066166,0.263235,699.27,697.54,0.2867219]
[1735092066369,0.263235,699.26,697.54,0.2867219]
[1735092066570,0.263235,699.25,697.54,0.2867219]
[1735092066868,0.263235,699.24,697.54,0.2867219]
[1735092067062,0.26323033,699.23,697.54,0.2867219]
[1735092067264,0.26323033,699.22,697.54,0.2867219]
[1735092067466,0.26323033,699.21,697.54,0.2867219]
[1735092067770,0.26323033,699.2,697.54,0.2867219]
[1735092068069,0.26323033,699.19,697.54,0.2867219]
[1735092068266,0.26323033,699.18,697.54,0.2867219]
[1735092068463,0.26323033,699.17,697.54,0.2867219]
[1735092068661,0.26323033,699.16,697.54,0.2867219]
[1735092068865,0.26323033,699.15,697.54,0.2867219]
[1735092069066,1.06902487,699.26,697.54,0.2867219]
[1735092069265,0.26318692,699.25,697.54,0.2867219]
[1735092069668,1.06902487,699.26,697.54,0.2867219]
[1735092069863,0.26318764,699.25,697.54,0.2867219]
[1735092070061,0.26318764,699.24,697.54,0.2867219]
[1735092070266,0.26318764,699.23,697.54,0.2867219]
[1735092070465,1.06902487,699.51,697.54,0.2867219]
[1735092070667,0.26315546,699.5,697.54,0.2867219]
[1735092070867,0.26315546,699.49,697.54,0.2867219]
[1735092071067,0.26315546,699.48,697.54,0.2867219]
[1735092071266,0.26315546,699.47,697.54,0.2867219]
[1735092071469,0.26315546,699.46,697.54,0.2867219]
[1735092071664,0.26315546,699.45,697.54,0.2867219]
[1735092071871,0.26315546,699.44,697.54,0.2867219]
[1735092072069,0.26315546,699.43,697.54,0.2867219]
[1735092072265,0.26315546,699.42,697.54,0.2867219]
[1735092072466,1.06902487,699.68,697.54,0.2867219]
[1735092072467,0.26312626,699.41,697.54,0.2867219]
[1735092072664,0.26312626,699.4,697.54,0.2867219]
[1735092072869,0.26312626,699.39,697.54,0.2867219]
[1735092073063,0.26312626,699.38,697.54,0.2867219]
[1735092073266,0.26313028,699.37,697.54,0.2867219]
[1735092073466,0.26313028,699.36,697.54,0.2867219]
[1735092073670,0.26313028,699.35,697.54,0.2867219]
[1735092073871,0.26313028,699.34,697.54,0.2867219]
[1735092074070,0.26313028,699.33,697.54,0.2867219]
[1735092074271,1.06902487,699.74,697.54,0.2867219]
[1735092074472,0.2631157,699.73,697.54,0.2867219]
[1735092075173,1.06902487,699.81,697.54,0.2867219]
[1735092075372,0.54891199,699.8,697.54,0.2867219]
[1735092075571,0.54891607,699.79,697.54,0.2867219]
[1735092075769,0.54892015,699.78,697.54,0.2867219]
[1735092075974,1.06902487,699.83,697.54,0.2867219]
[1735092075975,0.54892424,699.77,697.54,0.2867219]
[1735092076175,0.54892832,699.76,697.54,0.2867219]
[1735092076374,0.26311605,699.75,697.54,0.2867219]
[1735092077778,0.28581227,699.76,697.54,0.2867219]
[1735092078076,0.26313344,699.75,697.54,0.2867219]
[1735092079976,0.28582044,699.74,697.54,0.2867219]
[1735092080177,0.26313344,699.73,697.54,0.2867219]
[1735092080377,0.28582861,699.72,697.54,0.2867219]
[1735092080576,0.26313344,699.71,697.54,0.2867219]
[1735092083378,0.26316229,699.7,697.54,0.2867219]
[1735092083578,0.26316229,699.69,697.54,0.2867219]
[1735092083778,0.26316229,699.68,697.54,0.2867219]
[1735092083974,0.26316229,699.67,697.54,0.2867219]
[1735092084174,0.26316229,699.66,697.54,0.2867219]
[1735092084480,0.26316229,699.65,697.54,0.2867219]
[1735092084677,0.26316229,699.64,697.54,0.2867219]
[1735092084874,0.26316229,699.63,697.54,0.2867219]
[1735092085077,0.26316229,699.62,697.54,0.2867219]
[1735092085478,0.28587355,699.61,697.54,0.2867219]
[1735092085674,0.26316229,699.6,697.54,0.2867219]
[1735092086079,0.26320893,699.59,697.54,0.2867219]
[1735092086280,0.26320893,699.58,697.54,0.2867219]
[1735092086473,0.26320893,699.57,697.54,0.2867219]
[1735092086686,0.26320893,699.56,697.54,0.2867219]
[1735092086874,0.26320893,699.55,697.54,0.2867219]
[1735092087074,0.26320893,699.54,697.54,0.2867219]
[1735092087274,0.26320893,699.53,697.54,0.2867219]
[1735092087473,0.54911926,699.52,697.54,0.2867219]
[1735092087674,0.54912335,699.51,697.54,0.2867219]
[1735092087878,0.54912744,699.5,697.54,0.2867219]
[1735092088075,0.54913153,699.49,697.54,0.2867219]
[1735092088279,0.54913561,699.48,697.54,0.2867219]
[1735092088479,0.5491397,699.47,697.54,0.2867219]
[1735092088676,0.54914379,699.46,697.54,0.2867219]
[1735092088872,0.54914788,699.45,697.54,0.2867219]
[1735092089071,0.26320893,699.44,697.54,0.2867219]
[1735092089678,0.26322655,699.43,697.54,0.2867219]
[1735092089985,0.26322655,699.42,697.54,0.2867219]
[1735092090279,0.26322655,699.41,697.54,0.2867219]
[1735092090481,0.26322655,699.4,697.54,0.2867219]
[1735092090680,0.26322655,699.39,697.54,0.2867219]
[1735092090875,0.26322655,699.38,697.54,0.2867219]
[1735092091075,0.26322655,699.37,697.54,0.2867219]
[1735092091274,0.26322655,699.36,697.54,0.2867219]
[1735092091576,0.26322655,699.35,697.54,0.2867219]
[1735092091781,0.26322655,699.34,697.54,0.2867219]
[1735092091981,0.26322655,699.33,697.54,0.2867219]
[1735092092180,0.26322655,699.32,697.54,0.2867219]
[1735092092373,0.26322655,699.31,697.54,0.2867219]
[1735092092578,0.26322655,699.3,697.54,0.2867219]
[1735092092784,0.26322655,699.29,697.54,0.2867219]
[1735092092983,0.26322655,699.28,697.54,0.2867219]
[1735092093282,0.26322655,699.27,697.54,0.2867219]
[1735092093480,0.26322655,699.26,697.54,0.2867219]
[1735092093684,0.26322655,699.25,697.54,0.2867219]
[1735092093884,0.26322655,699.24,697.54,0.2867219]
[1735092094078,0.26322655,699.23,697.54,0.2867219]
[1735092094281,1.06902487,699.36,697.54,0.2867219]
[1735092094476,0.26326087,699.35,697.54,0.2867219]
[1735092094884,1.06902487,699.32,697.54,0.2867219]
[1735092095088,0.26326087,699.31,697.54,0.2867219]
[1735092095886,0.28600028,699.3,697.54,0.2867219]
[1735092096080,0.26326087,699.29,697.54,0.2867219]
[1735092097086,1.06902487,699.26,697.54,0.2867219]
[1735092097282,0.26326506,699.25,697.54,0.2867219]
[1735092097788,1.06902487,699.26,697.54,0.2867219]
[1735092097989,0.26326638,699.25,697.54,0.2867219]
[1735092098182,0.26326638,699.24,697.54,0.2867219]
[1735092098492,0.26326638,699.23,697.54,0.2867219]
[1735092098685,1.06902487,699.28,697.54,0.2867219]
[1735092098686,0.26326638,699.22,697.54,0.2867219]
[1735092098882,0.26326638,699.21,697.54,0.2867219]
[1735092099089,0.26326638,699.2,697.54,0.2867219]
[1735092099388,0.26326638,699.19,697.54,0.2867219]
[1735092099591,0.26326638,699.18,697.54,0.2867219]
[1735092099785,1.06902487,699.26,697.54,0.2867219]
[1735092099988,1.3323093,699.25,697.54,0.2867219]
[1735092100184,0.26328443,699.24,697.54,0.2867219]
[1735092100493,0.26328443,699.23,697.54,0.2867219]
[1735092100691,0.26328443,699.22,697.54,0.2867219]
[1735092100884,0.26328443,699.21,697.54,0.2867219]
[1735092101089,1.06902487,699.12,697.54,0.2867219]
[1735092101292,0.26328443,699.11,697.54,0.2867219]
[1735092101492,0.26328443,699.1,697.54,0.2867219]
[1735092101694,0.26328443,699.09,697.54,0.2867219]
[1735092101994,0.26328443,699.08,697.54,0.2867219]
[1735092102193,0.26328443,699.07,697.54,0.2867219]
[1735092102493,0.26328443,699.06,697.54,0.2867219]
[1735092102691,0.26328443,699.05,697.54,0.2867219]
[1735092102890,0.26328443,699.04,697.54,0.2867219]
[1735092103093,0.26328443,699.03,697.54,0.2867219]
[1735092103392,0.26328443,699.02,697.54,0.2867219]
[1735092103587,0.26328443,699.01,697.54,0.2867219]
[1735092103790,0.26328443,699.0,697.54,0.2867219]
[1735092103986,0.26328443,698.99,697.54,0.2867219]
[1735092104187,0.26328443,698.98,697.54,0.2867219]
[1735092104389,0.26328443,698.97,697.54,0.2867219]
[1735092104586,0.26328443,698.96,697.54,0.2867219]
[1735092104789,0.26328443,698.95,697.54,0.2867219]
[1735092104989,0.26328443,698.94,697.54,0.2867219]
[1735092105190,0.26328443,698.93,697.54,0.2867219]
[1735092105390,0.26328443,699.17,697.54,0.2867219]
[1735092105692,0.26328443,699.16,697.54,0.2867219]
[1735092105884,0.26328443,699.15,697.54,0.2867219]
[1735092106089,0.26328443,699.14,697.54,0.2867219]
[1735092106387,0.26332671,699.13,697.54,0.2867219]
[1735092106588,0.26332671,699.12,697.54,0.2867219]
[1735092106790,0.28600028,699.3,697.54,0.2867219]
[1735092107092,0.26332787,699.29,697.54,0.2867219]
[1735092108090,0.28600846,699.28,697.54,0.2867219]
[1735092108290,0.26332856,699.27,697.54,0.2867219]
[1735092108491,0.28601664,699.26,697.54,0.2867219]
[1735092108691,0.26332856,699.25,697.54,0.2867219]
[1735092108892,0.28602482,699.24,697.54,0.2867219]
[1735092109092,0.26332856,699.23,697.54,0.2867219]
[1735092109393,0.286033,699.22,697.54,0.2867219]
[1735092109592,0.26332856,699.21,697.54,0.2867219]
[1735092109893,0.28604118,699.2,697.54,0.2867219]
[1735092110193,0.26332856,699.19,697.54,0.2867219]
[1735092110990,0.28605346,699.17,697.54,0.2867219]
[1735092111192,0.26340887,699.16,697.54,0.2867219]
[1735092111492,0.28606573,699.14,697.54,0.2867219]
[1735092111693,0.26340887,699.13,697.54,0.2867219]
[1735092112394,0.28607801,699.11,697.54,0.2867219]
[1735092112594,0.26340887,699.1,697.54,0.2867219]
[1735092112795,0.28608619,699.09,697.54,0.2867219]
[1735092112994,0.26340887,699.08,697.54,0.2867219]
[1735092113195,0.28609438,699.07,697.54,0.2867219]
[1735092113400,0.26340887,699.06,697.54,0.2867219]
[1735092113592,0.28609438,699.07,697.54,0.2867219]
[1735092113792,0.26342473,699.06,697.54,0.2867219]
[1735092114294,0.28610666,699.04,697.54,0.2867219]
[1735092114494,0.26342473,699.03,697.54,0.2867219]
[1735092114695,0.28610666,699.04,697.54,0.2867219]
[1735092114696,0.54954147,699.02,697.54,0.2867219]
[1735092114889,0.26342663,699.01,697.54,0.2867219]
[1735092115295,0.28612303,699.0,697.54,0.2867219]
[1735092115497,0.26342663,698.99,697.54,0.2867219]
[1735092115696,0.28613121,698.98,697.54,0.2867219]
[1735092115891,0.26342663,698.97,697.54,0.2867219]
[1735092116092,0.2861394,698.96,697.54,0.2867219]
[1735092116289,0.26342663,698.95,697.54,0.2867219]
[1735092116492,0.54956675,698.94,697.54,0.2867219]
[1735092116793,0.54957084,698.93,697.54,0.2867219]
[1735092116998,0.26341916,698.92,697.54,0.2867219]
[1735092117191,0.28615987,698.91,697.54,0.2867219]
[1735092117395,0.26341916,698.9,697.54,0.2867219]
[1735092117593,0.28616806,698.89,697.54,0.2867219]
[1735092117798,0.26341916,698.88,697.54,0.2867219]
[1735092117998,0.28617625,698.87,697.54,0.2867219]
[1735092118197,0.26341916,698.86,697.54,0.2867219]
[1735092118396,0.28618444,698.85,697.54,0.2867219]
[1735092118598,0.26341916,698.84,697.54,0.2867219]
[1735092121297,0.26339208,698.83,697.54,0.2867219]
[1735092121498,0.26339208,698.82,697.54,0.2867219]
[1735092121695,0.26339208,698.81,697.54,0.2867219]
[1735092121901,0.26339208,698.8,697.54,0.2867219]
[1735092122099,0.26338333,698.79,697.54,0.2867219]
[1735092122300,0.26338333,698.78,697.54,0.2867219]
[1735092122501,0.26338333,698.77,697.54,0.2867219]
[1735092122704,0.26337959,698.84,697.54,0.2867219]
[1735092123895,0.28618444,698.85,697.54,0.2867219]
[1735092124095,0.26341023,698.84,697.54,0.2867219]
[1735092125201,0.26341023,698.83,697.54,0.2867219]
[1735092125401,0.26341023,698.82,697.54,0.2867219]
[1735092125702,0.26341023,698.81,697.54,0.2867219]
[1735092126001,0.26341023,698.8,697.54,0.2867219]
[1735092126203,0.26341023,698.79,697.54,0.2867219]
[1735092126403,0.26341023,698.78,697.54,0.2867219]
[1735092126602,0.26341023,698.77,697.54,0.2867219]
[1735092126904,0.26341023,698.76,697.54,0.2867219]
[1735092127102,0.26341023,698.75,697.54,0.2867219]
[1735092127298,0.26341023,698.74,697.54,0.2867219]
[1735092127498,0.26341023,698.73,697.54,0.2867219]
[1735092127702,0.26341023,698.72,697.54,0.2867219]
[1735092127903,0.26341023,698.71,697.54,0.2867219]
[1735092128102,0.26341023,698.7,697.54,0.2867219]
[1735092128297,0.26341023,698.69,697.54,0.2867219]
[1735092128502,0.26341023,698.68,697.54,0.2867219]
[1735092128700,0.26341023,698.67,697.54,0.2867219]
[1735092128898,0.26341023,698.66,697.54,0.2867219]
[1735092129103,0.26341023,698.65,697.54,0.2867219]
[1735092129302,0.28618444,698.85,697.54,0.2867219]
[1735092129505,0.26340345,698.84,697.54,0.2867219]
[1735092129799,0.26340345,698.83,697.54,0.2867219]
[1735092130003,0.26340345,698.82,697.54,0.2867219]
[1735092130207,0.26338947,698.81,697.54,0.2867219]
[1735092130407,0.26338947,698.8,697.54,0.2867219]
[1735092130607,0.26338947,698.79,697.54,0.2867219]
[1735092130802,0.26338947,698.78,697.54,0.2867219]
[1735092131005,0.26338947,698.77,697.54,0.2867219]
[1735092131205,0.26338947,698.76,697.54,0.2867219]
[1735092131399,0.26338947,698.75,697.54,0.2867219]
[1735092131601,0.26338947,698.74,697.54,0.2867219]
[1735092131804,0.26338947,698.73,697.54,0.2867219]
[1735092132010,0.26338947,698.72,697.54,0.2867219]
[1735092132203,0.26338947,698.84,697.54,0.2867219]
[1735092132509,1.06902487,698.81,697.54,0.2867219]
[1735092132708,0.26338947,698.8,697.54,0.2867219]
[1735092133008,1.06902487,698.81,697.54,0.2867219]
[1735092133009,0.26338947,698.79,697.54,0.2867219]
[1735092133209,0.26338947,698.78,697.54,0.2867219]
[1735092133409,0.26338947,698.77,697.54,0.2867219]
[1735092133709,0.26338947,698.76,697.54,0.2867219]
[1735092134007,0.26338947,698.75,697.54,0.2867219]
[1735092134207,0.26338947,698.74,697.54,0.2867219]
[1735092134407,0.26338947,698.73,697.54,0.2867219]
[1735092134608,0.26338947,698.72,697.54,0.2867219]
[1735092134810,0.26338947,698.71,697.54,0.2867219]
[1735092135104,0.26338947,698.7,697.54,0.2867219]
[1735092135309,0.26338947,698.69,697.54,0.2867219]
[1735092135511,0.26338947,698.68,697.54,0.2867219]
[1735092135704,0.26338947,698.67,697.54,0.2867219]
[1735092135905,0.26338947,698.66,697.54,0.2867219]
[1735092136106,0.26338947,698.65,697.54,0.2867219]
[1735092136308,0.26338947,698.64,697.54,0.2867219]
[1735092136606,0.26338947,698.63,697.54,0.2867219]
[1735092136812,0.26338947,698.62,697.54,0.2867219]
[1735092137010,0.26338947,698.61,697.54,0.2867219]
[1735092137305,0.26338947,698.6,697.54,0.2867219]
[1735092137509,0.26338947,698.59,697.54,0.2867219]
[1735092137709,0.26339127,698.58,697.54,0.2867219]
[1735092137907,0.26339127,698.57,697.54,0.2867219]
[1735092138109,0.26339127,698.56,697.54,0.2867219]
[1735092138310,0.26339127,698.55,697.54,0.2867219]
[1735092138611,0.64420314,698.82,697.54,0.2867219]
[1735092138612,0.2633936,698.54,697.54,0.2867219]
[1735092138911,0.2633936,698.53,697.54,0.2867219]
[1735092139110,0.2633936,698.52,697.54,0.2867219]
[1735092139407,0.2633936,698.51,697.54,0.2867219]
[1735092139615,0.2633936,698.5,697.54,0.2867219]
[1735092139811,0.2633936,698.49,697.54,0.2867219]
[1735092140012,0.2633936,698.48,697.54,0.2867219]
[1735092140213,0.2633936,698.47,697.54,0.2867219]
[1735092140513,1.06902487,698.66,697.54,0.2867219]
[1735092140813,1.33242295,698.65,697.54,0.2867219]
[1735092141006,0.26339808,698.64,697.54,0.2867219]
[1735092141713,0.26339808,698.63,697.54,0.2867219]
[1735092141908,0.26339808,698.62,697.54,0.2867219]
[1735092142111,0.26339808,698.61,697.54,0.2867219]
[1735092142315,0.26339808,698.6,697.54,0.2867219]
[1735092142512,0.26339808,698.59,697.54,0.2867219]
[1735092142709,0.26339808,698.58,697.54,0.2867219]
[1735092142908,0.26339808,698.57,697.54,0.2867219]
[1735092143110,0.26339808,698.67,697.54,0.2867219]
[1735092143311,1.06902487,698.65,697.54,0.2867219]
[1735092143508,0.2634038,698.64,697.54,0.2867219]
[1735092144115,0.2634038,698.63,697.54,0.2867219]
[1735092144414,1.06902487,698.73,697.54,0.2867219]
[1735092144618,0.2633762,698.72,697.54,0.2867219]
[1735092145417,0.2633762,698.71,697.54,0.2867219]
[1735092145619,0.2633762,698.7,697.54,0.2867219]
[1735092145812,1.06902487,698.83,697.54,0.2867219]
[1735092146019,0.26337515,698.82,697.54,0.2867219]
[1735092146518,0.26337515,698.81,697.54,0.2867219]
[1735092146818,0.26337515,698.8,697.54,0.2867219]
[1735092147017,0.26337515,698.79,697.54,0.2867219]
[1735092147214,0.26337515,698.78,697.54,0.2867219]
[1735092147411,0.26337515,698.77,697.54,0.2867219]
[1735092147613,0.26337515,698.76,697.54,0.2867219]
[1735092147816,0.26337515,698.75,697.54,0.2867219]
[1735092148017,0.26337515,698.74,697.54,0.2867219]
[1735092148318,0.26337515,698.73,697.54,0.2867219]
[1735092148519,0.26337515,698.72,697.54,0.2867219]
[1735092148712,0.26337515,698.84,697.54,0.2867219]
[1735092148912,0.26337515,698.83,697.54,0.2867219]
[1735092149116,0.26337515,698.82,697.54,0.2867219]
[1735092149313,0.26337515,698.81,697.54,0.2867219]
[1735092149515,0.26337515,698.8,697.54,0.2867219]
[1735092149717,0.26337515,698.79,697.54,0.2867219]
[1735092149915,0.26337515,698.78,697.54,0.2867219]
[1735092150117,0.26337515,698.77,697.54,0.2867219]
[1735092150319,0.28618444,698.85,697.54,0.2867219]
[1735092150320,0.26337515,698.76,697.54,0.2867219]
[1735092150620,0.28618444,698.85,697.54,0.2867219]
[1735092150621,0.26337515,698.75,697.54,0.2867219]
[1735092150819,0.26337515,698.74,697.54,0.2867219]
[1735092151017,0.26337515,698.73,697.54,0.2867219]
[1735092151221,0.26337515,698.72,697.54,0.2867219]
[1735092151421,0.26337515,698.71,697.54,0.2867219]
[1735092151720,0.26337515,698.7,697.54,0.2867219]
[1735092151921,0.26337515,698.69,697.54,0.2867219]
[1735092152121,0.28618444,698.85,697.54,0.2867219]
[1735092152321,0.26336597,698.84,697.54,0.2867219]
[1735092155024,0.28618444,698.85,697.54,0.2867219]
[1735092155225,0.26336731,698.84,697.54,0.2867219]
[1735092158628,1.06902487,698.8,697.54,0.2867219]
[1735092158827,0.26336731,698.79,697.54,0.2867219]
[1735092159720,0.26341567,698.78,697.54,0.2867219]
[1735092159921,0.26341567,698.77,697.54,0.2867219]
[1735092160126,0.26341567,698.76,697.54,0.2867219]
[1735092160436,0.26341567,698.75,697.54,0.2867219]
[1735092160634,0.28618444,698.85,697.54,0.2867219]
[1735092160635,0.26341567,698.74,697.54,0.2867219]
[1735092160831,0.28618444,698.85,697.54,0.2867219]
[1735092160832,0.26341567,698.73,697.54,0.2867219]
[1735092161028,0.26341567,698.72,697.54,0.2867219]
[1735092161231,0.26341567,698.71,697.54,0.2867219]
[1735092161534,0.26341567,698.7,697.54,0.2867219]
[1735092161735,0.26341567,698.69,697.54,0.2867219]
[1735092161935,0.28618444,698.85,697.54,0.2867219]
[1735092162235,0.26341814,698.84,697.54,0.2867219]
[1735092162436,0.26341883,698.83,697.54,0.2867219]
[1735092162636,0.26341883,698.82,697.54,0.2867219]
[1735092162831,0.26341883,698.81,697.54,0.2867219]
[1735092163031,0.26341883,698.8,697.54,0.2867219]
[1735092163230,0.26341712,698.79,697.54,0.2867219]
[1735092163429,0.26341712,698.78,697.54,0.2867219]
[1735092163630,0.26341712,698.77,697.54,0.2867219]
[1735092163834,0.26341712,698.76,697.54,0.2867219]
[1735092164036,0.26341712,698.75,697.54,0.2867219]
[1735092164233,0.26341712,698.74,697.54,0.2867219]
[1735092164434,0.26341712,698.73,697.54,0.2867219]
[1735092164635,0.26341712,698.72,697.54,0.2867219]
[1735092164839,0.26341712,698.71,697.54,0.2867219]
[1735092165133,0.26341712,698.7,697.54,0.2867219]
[1735092165340,0.26343688,698.69,697.54,0.2867219]
[1735092165531,0.26343688,698.68,697.54,0.2867219]
[1735092165834,0.26343688,698.67,697.54,0.2867219]
[1735092166038,0.26343688,698.66,697.54,0.2867219]
[1735092166339,0.26343688,698.65,697.54,0.2867219]